[Event "*** Titled Tuesday Blitz"]
[Site "Chess.com"]
[Date "2020.05.26"]
[Round "7"]
[White "northridgehawk"]
[Black "Nafania1"]
[Result "0-1"]
[WhiteElo "2198"]
[BlackElo "2457"]
[TimeControl "180+1"]
[EndTime "11:19:49 PDT"]
[Termination "Nafania1 won by resignation"]

1. e4 {[%clk 0:03:00.9]} 1... e6 {[%clk 0:02:59.8]} 2. Nc3 {[%clk 0:03:00]} 2...
d5 {[%clk 0:02:58]} 3. Nf3 {[%clk 0:03:00.5]} 3... Nf6 {[%clk 0:02:56.7]} 4. e5
{[%clk 0:03:00.3]} 4... Nfd7 {[%clk 0:02:56.7]} 5. d4 {[%clk 0:03:01.2]} 5... c5
{[%clk 0:02:57]} 6. dxc5 {[%clk 0:02:56]} 6... Nc6 {[%clk 0:02:56.7]} 7. Bf4
{[%clk 0:02:54.9]} 7... a6 {[%clk 0:02:49.4]} 8. Bd3 {[%clk 0:02:53.7]} 8...
Nxc5 {[%clk 0:02:49.4]} 9. O-O {[%clk 0:02:52.2]} 9... Be7 {[%clk 0:02:47]} 10.
Re1 {[%clk 0:02:48.2]} 10... g5 {[%clk 0:02:42.4]} 11. Bg3 {[%clk 0:02:34.9]}
11... h5 {[%clk 0:02:38.9]} 12. h3 {[%clk 0:02:33.1]} 12... Qb6 {[%clk
0:02:26.4]} 13. Ne2 {[%clk 0:02:23.7]} 13... Bd7 {[%clk 0:02:17.5]} 14. b3
{[%clk 0:02:16.1]} 14... O-O-O {[%clk 0:02:16.2]} 15. Ned4 {[%clk 0:02:15]}
15... Rdg8 {[%clk 0:02:02.5]} 16. c4 {[%clk 0:02:10.8]} 16... g4 {[%clk
0:01:56.4]} 17. hxg4 {[%clk 0:02:09.6]} 17... hxg4 {[%clk 0:01:56.5]} 18. Nxc6
{[%clk 0:02:09.1]} 18... Bxc6 {[%clk 0:01:53.5]} 19. Nh2 {[%clk 0:02:05.7]}
19... dxc4 {[%clk 0:01:49.9]} 20. Bxc4 {[%clk 0:02:04.5]} 20... Ne4 {[%clk
0:01:44.6]} 21. Nf1 {[%clk 0:01:39.5]} 21... Bc5 {[%clk 0:01:37.3]} 22. Qc2
{[%clk 0:01:33.3]} 22... Nxf2 {[%clk 0:01:19.2]} 23. Ne3 {[%clk 0:01:23.1]}
23... Bxe3 {[%clk 0:00:58.7]} 24. Rxe3 {[%clk 0:01:19.7]} 24... Qxe3 {[%clk
0:00:57.9]} 25. Bxf2 {[%clk 0:01:17.5]} 25... Qh6 {[%clk 0:00:55.4]} 26. Kf1
{[%clk 0:01:08.7]} 26... g3 {[%clk 0:00:51.1]} 27. Bg1 {[%clk 0:01:05.7]} 27...
Qf4+ {[%clk 0:00:48.1]} 28. Ke2 {[%clk 0:00:53.1]} 28... Qxe5+ {[%clk
0:00:46.7]} 29. Kd3 {[%clk 0:00:48.4]} 29... Be4+ {[%clk 0:00:44.3]} 0-1

[Event "*** Titled Tuesday Blitz"]
[Site "Chess.com"]
[Date "2020.05.26"]
[Round "7"]
[White "LiverpooL174"]
[Black "BocharovD"]
[Result "0-1"]
[WhiteElo "2668"]
[BlackElo "2828"]
[TimeControl "180+1"]
[EndTime "11:19:53 PDT"]
[Termination "BocharovD won by resignation"]

1. Nf3 {[%clk 0:03:00.9]} 1... c5 {[%clk 0:02:59.6]} 2. b3 {[%clk 0:03:01.8]}
2... d6 {[%clk 0:02:58.1]} 3. Bb2 {[%clk 0:03:02.5]} 3... e5 {[%clk 0:02:57.5]}
4. e3 {[%clk 0:03:03.1]} 4... Nc6 {[%clk 0:02:47.7]} 5. d4 {[%clk 0:03:03.6]}
5... cxd4 {[%clk 0:02:48]} 6. exd4 {[%clk 0:03:03.7]} 6... e4 {[%clk 0:02:48.1]}
7. Nfd2 {[%clk 0:03:03]} 7... f5 {[%clk 0:02:46.6]} 8. c4 {[%clk 0:03:03.2]}
8... Nf6 {[%clk 0:02:46]} 9. d5 {[%clk 0:03:02.9]} 9... Ne5 {[%clk 0:02:45.7]}
10. Be2 {[%clk 0:03:03.1]} 10... Be7 {[%clk 0:02:43.1]} 11. O-O {[%clk
0:03:03.8]} 11... O-O {[%clk 0:02:42.7]} 12. Nc3 {[%clk 0:03:03.7]} 12... Bd7
{[%clk 0:02:40]} 13. Rc1 {[%clk 0:03:04.3]} 13... Kh8 {[%clk 0:02:38.5]} 14. b4
{[%clk 0:03:04.4]} 14... a5 {[%clk 0:02:37]} 15. a3 {[%clk 0:03:04]} 15... axb4
{[%clk 0:02:33]} 16. axb4 {[%clk 0:03:04.9]} 16... Qb6 {[%clk 0:02:32.4]} 17.
Nb5 {[%clk 0:03:03.1]} 17... Bxb5 {[%clk 0:02:26]} 18. cxb5 {[%clk 0:03:04]}
18... Nxd5 {[%clk 0:02:20.8]} 19. Nxe4 {[%clk 0:03:01.2]} 19... fxe4 {[%clk
0:02:03.9]} 20. Qxd5 {[%clk 0:03:01]} 20... e3 {[%clk 0:01:55.3]} 21. f4 {[%clk
0:02:57.5]} 21... Ng6 {[%clk 0:01:52.8]} 22. Bd4 {[%clk 0:02:54.4]} 22... Qd8
{[%clk 0:01:47.5]} 23. Bxe3 {[%clk 0:02:51.9]} 23... Ra3 {[%clk 0:01:46.5]} 24.
Bd4 {[%clk 0:02:51.1]} 24... Nxf4 {[%clk 0:01:40.3]} 25. Bxg7+ {[%clk
0:02:13.6]} 25... Kxg7 {[%clk 0:01:34.6]} 26. Qd4+ {[%clk 0:02:14.3]} 26... Kh6
{[%clk 0:01:26.5]} 27. Rxf4 {[%clk 0:02:07.1]} 27... Rxf4 {[%clk 0:01:25.6]} 28.
Qxf4+ {[%clk 0:02:07.7]} 28... Bg5 {[%clk 0:01:25.9]} 29. Qc4 {[%clk 0:01:59.2]}
29... d5 {[%clk 0:01:25.9]} 30. Qc2 {[%clk 0:01:41.7]} 30... Qb6+ {[%clk
0:01:23.9]} 31. Kf1 {[%clk 0:01:31.2]} 31... Bxc1 {[%clk 0:01:17.5]} 32. Qxc1+
{[%clk 0:01:32.1]} 32... Qe3 {[%clk 0:01:17.5]} 33. Qxe3+ {[%clk 0:01:21.3]}
33... Rxe3 {[%clk 0:01:17]} 34. Bf3 {[%clk 0:01:22.2]} 34... Rd3 {[%clk
0:01:17.2]} 35. Ke2 {[%clk 0:01:21.6]} 35... Rd4 {[%clk 0:01:17.3]} 36. Ke3
{[%clk 0:01:18.6]} 36... Rxb4 {[%clk 0:01:17.2]} 37. Bxd5 {[%clk 0:01:19.5]}
37... Rxb5 {[%clk 0:01:17.4]} 38. Be4 {[%clk 0:01:20.4]} 38... Kg7 {[%clk
0:01:13]} 39. h4 {[%clk 0:01:20.9]} 39... h5 {[%clk 0:01:11.9]} 40. Kf4 {[%clk
0:01:20.2]} 40... Rb4 {[%clk 0:01:11.2]} 41. g3 {[%clk 0:01:18]} 41... b5 {[%clk
0:01:11]} 42. Ke5 {[%clk 0:01:17.1]} 42... Rb3 {[%clk 0:01:04.3]} 43. Kd4 {[%clk
0:01:17.3]} 43... Rxg3 {[%clk 0:01:03.3]} 44. Kc5 {[%clk 0:01:17.9]} 44... Rg4
{[%clk 0:01:02.5]} 45. Bf5 {[%clk 0:01:18.1]} 45... Rxh4 {[%clk 0:01:01.3]} 46.
Kxb5 {[%clk 0:01:18.5]} 46... Rd4 {[%clk 0:01:01]} 47. Kc5 {[%clk 0:01:18.6]}
47... Rd8 {[%clk 0:01:00.5]} 48. Be6 {[%clk 0:01:17.7]} 48... h4 {[%clk
0:01:00.6]} 49. Bd5 {[%clk 0:01:18.6]} 49... h3 {[%clk 0:01:00.3]} 50. Kd4
{[%clk 0:01:19.5]} 0-1

[Event "*** Titled Tuesday Blitz"]
[Site "Chess.com"]
[Date "2020.05.26"]
[Round "7"]
[White "Artem_Sadovsky"]
[Black "ErikRonka"]
[Result "1-0"]
[WhiteElo "2522"]
[BlackElo "2373"]
[TimeControl "180+1"]
[EndTime "11:19:54 PDT"]
[Termination "Artem_Sadovsky won by checkmate"]

1. Nf3 {[%clk 0:02:58.5]} 1... d5 {[%clk 0:02:58]} 2. g3 {[%clk 0:02:58.9]} 2...
Nf6 {[%clk 0:02:57.6]} 3. Bg2 {[%clk 0:02:58.8]} 3... Bg4 {[%clk 0:02:57.7]} 4.
O-O {[%clk 0:02:59.5]} 4... Nbd7 {[%clk 0:02:55.3]} 5. c4 {[%clk 0:03:00]} 5...
e6 {[%clk 0:02:53]} 6. b3 {[%clk 0:02:59.3]} 6... Bd6 {[%clk 0:02:51.7]} 7. Bb2
{[%clk 0:02:58.6]} 7... O-O {[%clk 0:02:50.8]} 8. d3 {[%clk 0:02:59]} 8... Qe7
{[%clk 0:02:47.8]} 9. Nbd2 {[%clk 0:02:59]} 9... Ba3 {[%clk 0:02:46.5]} 10. Qc2
{[%clk 0:02:56]} 10... Bxb2 {[%clk 0:02:45.1]} 11. Qxb2 {[%clk 0:02:56.9]} 11...
a5 {[%clk 0:02:35.8]} 12. Rac1 {[%clk 0:02:56.2]} 12... c6 {[%clk 0:02:33.8]}
13. Rfe1 {[%clk 0:02:55.8]} 13... Rfd8 {[%clk 0:02:29.2]} 14. a3 {[%clk
0:02:47.9]} 14... e5 {[%clk 0:02:24.2]} 15. cxd5 {[%clk 0:02:46]} 15... cxd5
{[%clk 0:02:19.3]} 16. Rc7 {[%clk 0:02:46.9]} 16... e4 {[%clk 0:02:15.5]} 17.
Nd4 {[%clk 0:02:31]} 17... exd3 {[%clk 0:02:10.8]} 18. h3 {[%clk 0:02:20.8]}
18... Bxe2 {[%clk 0:02:01.3]} 19. Rxb7 {[%clk 0:02:16.8]} 19... Qd6 {[%clk
0:01:41.8]} 20. Nxe2 {[%clk 0:02:14.2]} 20... dxe2 {[%clk 0:01:41.6]} 21. Rxe2
{[%clk 0:02:15.1]} 21... Rab8 {[%clk 0:01:38]} 22. Rxb8 {[%clk 0:02:14.9]} 22...
Rxb8 {[%clk 0:01:37.9]} 23. Nf3 {[%clk 0:02:02.6]} 23... h6 {[%clk 0:01:32]} 24.
Nd4 {[%clk 0:02:02.1]} 24... Nc5 {[%clk 0:01:28.4]} 25. Nf5 {[%clk 0:02:00.7]}
25... Qd8 {[%clk 0:01:05.4]} 26. Ne7+ {[%clk 0:01:59.2]} 26... Kh8 {[%clk
0:00:49]} 27. Nc6 {[%clk 0:02:00.1]} 27... Qb6 {[%clk 0:00:30]} 28. Nxb8 {[%clk
0:01:59.8]} 28... Qxb8 {[%clk 0:00:30.9]} 29. b4 {[%clk 0:02:00]} 29... axb4
{[%clk 0:00:26.9]} 30. Qxb4 {[%clk 0:02:00.9]} 30... Qa7 {[%clk 0:00:23.6]} 31.
Qd4 {[%clk 0:01:57.4]} 31... Qxa3 {[%clk 0:00:21.6]} 32. Re7 {[%clk 0:01:55.9]}
32... Ne6 {[%clk 0:00:18.4]} 33. Qa7 {[%clk 0:01:45.2]} 33... Qc1+ {[%clk
0:00:17.4]} 34. Kh2 {[%clk 0:01:45.2]} 34... d4 {[%clk 0:00:13.4]} 35. Rxf7
{[%clk 0:01:39.4]} 35... d3 {[%clk 0:00:13.8]} 36. Qa8+ {[%clk 0:01:35.9]} 36...
Kh7 {[%clk 0:00:13.6]} 37. Be4+ {[%clk 0:01:36.2]} 37... Nxe4 {[%clk 0:00:13.2]}
38. Qxe4+ {[%clk 0:01:36]} 38... Kh8 {[%clk 0:00:09]} 39. Qxe6 {[%clk
0:01:36.9]} 39... d2 {[%clk 0:00:09.1]} 40. Rf8+ {[%clk 0:01:37.5]} 40... Kh7
{[%clk 0:00:09.2]} 41. Qf5+ {[%clk 0:01:38.4]} 41... g6 {[%clk 0:00:08.3]} 42.
Qf7# {[%clk 0:01:39.3]} 1-0

[Event "*** Titled Tuesday Blitz"]
[Site "Chess.com"]
[Date "2020.05.26"]
[Round "7"]
[White "Shivagami"]
[Black "Susal_De_Silva"]
[Result "0-1"]
[WhiteElo "2214"]
[BlackElo "2368"]
[TimeControl "180+1"]
[EndTime "11:19:54 PDT"]
[Termination "Susal_De_Silva won by resignation"]

1. e4 {[%clk 0:03:00.9]} 1... e5 {[%clk 0:02:59.6]} 2. Nc3 {[%clk 0:02:59.2]}
2... Nf6 {[%clk 0:02:59.3]} 3. Bc4 {[%clk 0:02:59.1]} 3... Bc5 {[%clk
0:02:57.1]} 4. d3 {[%clk 0:02:57.5]} 4... d6 {[%clk 0:02:53.8]} 5. f4 {[%clk
0:02:57.8]} 5... Ng4 {[%clk 0:02:52]} 6. Nh3 {[%clk 0:02:44.7]} 6... Qh4+ {[%clk
0:02:49.8]} 7. Kd2 {[%clk 0:02:12.4]} 7... Nf2 {[%clk 0:02:17.3]} 8. Qe1 {[%clk
0:02:00.5]} 8... Bxh3 {[%clk 0:02:15.5]} 9. gxh3 {[%clk 0:01:31.9]} 9... Qxh3
{[%clk 0:01:41.4]} 10. Rg1 {[%clk 0:01:11.4]} 10... Nc6 {[%clk 0:01:34.3]} 11.
Rxg7 {[%clk 0:00:56.9]} 11... O-O-O {[%clk 0:01:27.8]} 12. Rxf7 {[%clk
0:00:56.7]} 12... Nd4 {[%clk 0:01:09.4]} 13. Qxf2 {[%clk 0:00:22.5]} 13... Nf3+
{[%clk 0:01:04]} 14. Qxf3 {[%clk 0:00:19.7]} 14... Qxf3 {[%clk 0:01:04.9]} 15.
Nd5 {[%clk 0:00:20]} 15... Rd7 {[%clk 0:00:58.9]} 16. Nb6+ {[%clk 0:00:07.1]}
16... axb6 {[%clk 0:00:54.8]} 17. Be6 {[%clk 0:00:08]} 17... Qf2+ {[%clk
0:00:53.7]} 0-1

[Event "*** Titled Tuesday Blitz"]
[Site "Chess.com"]
[Date "2020.05.26"]
[Round "7"]
[White "AlexTriapishko"]
[Black "chessplayer9919"]
[Result "1-0"]
[WhiteElo "2724"]
[BlackElo "2486"]
[TimeControl "180+1"]
[EndTime "11:19:59 PDT"]
[Termination "AlexTriapishko won by resignation"]

1. Nc3 {[%clk 0:03:00.1]} 1... c6 {[%clk 0:02:52.2]} 2. d4 {[%clk 0:02:56.8]}
2... d5 {[%clk 0:02:52.4]} 3. Bf4 {[%clk 0:02:57.4]} 3... Nf6 {[%clk 0:02:51]}
4. e3 {[%clk 0:02:57.7]} 4... g6 {[%clk 0:02:46]} 5. h3 {[%clk 0:02:55.1]} 5...
Bg7 {[%clk 0:02:45.4]} 6. Nf3 {[%clk 0:02:55.7]} 6... O-O {[%clk 0:02:46.3]} 7.
Be2 {[%clk 0:02:56.1]} 7... Nbd7 {[%clk 0:02:46.2]} 8. O-O {[%clk 0:02:56.6]}
8... Re8 {[%clk 0:02:46]} 9. Ne5 {[%clk 0:02:56.9]} 9... Nxe5 {[%clk 0:02:45.5]}
10. Bxe5 {[%clk 0:02:57.8]} 10... Nd7 {[%clk 0:02:46]} 11. Bxg7 {[%clk
0:02:57.9]} 11... Kxg7 {[%clk 0:02:46.9]} 12. e4 {[%clk 0:02:58.7]} 12... dxe4
{[%clk 0:02:40.2]} 13. Nxe4 {[%clk 0:02:59.6]} 13... Nf6 {[%clk 0:02:36.1]} 14.
Nxf6 {[%clk 0:02:59.3]} 14... exf6 {[%clk 0:02:37]} 15. c3 {[%clk 0:02:59.1]}
15... Be6 {[%clk 0:02:36]} 16. Bf3 {[%clk 0:02:57.8]} 16... Qd6 {[%clk
0:02:35.9]} 17. Re1 {[%clk 0:02:55.1]} 17... Rad8 {[%clk 0:02:36.4]} 18. Qd2
{[%clk 0:02:49.1]} 18... Bd5 {[%clk 0:02:30.8]} 19. Bxd5 {[%clk 0:02:45.7]}
19... cxd5 {[%clk 0:02:31.7]} 20. Rxe8 {[%clk 0:02:38.8]} 20... Rxe8 {[%clk
0:02:32.6]} 21. Re1 {[%clk 0:02:39.4]} 21... Re4 {[%clk 0:02:26.9]} 22. Rxe4
{[%clk 0:02:21.1]} 22... dxe4 {[%clk 0:02:24.5]} 23. d5 {[%clk 0:02:22]} 23...
f5 {[%clk 0:01:56.8]} 24. Qd4+ {[%clk 0:02:12.1]} 24... Kg8 {[%clk 0:01:44.1]}
25. c4 {[%clk 0:02:11.9]} 25... b6 {[%clk 0:01:42.5]} 26. b4 {[%clk 0:02:04.1]}
26... e3 {[%clk 0:00:14.8]} 27. fxe3 {[%clk 0:01:33.1]} 27... f4 {[%clk
0:00:10.1]} 28. c5 {[%clk 0:01:29.4]} 28... bxc5 {[%clk 0:00:09.3]} 29. bxc5
{[%clk 0:01:30.3]} 29... Qb8 {[%clk 0:00:04.5]} 30. exf4 {[%clk 0:01:29.1]}
30... Qb1+ {[%clk 0:00:03.7]} 31. Kh2 {[%clk 0:01:29.6]} 31... Qa1 {[%clk
0:00:02.1]} 32. Qxa1 {[%clk 0:01:28.9]} 1-0

[Event "*** Titled Tuesday Blitz"]
[Site "Chess.com"]
[Date "2020.05.26"]
[Round "7"]
[White "KingChess345"]
[Black "RobPeresian"]
[Result "0-1"]
[WhiteElo "2182"]
[BlackElo "2317"]
[TimeControl "180+1"]
[EndTime "11:19:59 PDT"]
[Termination "RobPeresian won on time"]

1. d4 {[%clk 0:03:00.9]} 1... d5 {[%clk 0:02:58.9]} 2. Nf3 {[%clk 0:03:01.2]}
2... Nf6 {[%clk 0:02:59.1]} 3. g3 {[%clk 0:03:02.1]} 3... g6 {[%clk 0:02:55.8]}
4. Bg2 {[%clk 0:03:03]} 4... Bg7 {[%clk 0:02:55.9]} 5. O-O {[%clk 0:03:03.9]}
5... O-O {[%clk 0:02:56.1]} 6. c4 {[%clk 0:03:04.4]} 6... c6 {[%clk 0:02:55.9]}
7. Qb3 {[%clk 0:03:03.9]} 7... a5 {[%clk 0:02:53.1]} 8. cxd5 {[%clk 0:03:03.5]}
8... a4 {[%clk 0:02:52]} 9. Qd1 {[%clk 0:03:03.8]} 9... cxd5 {[%clk 0:02:51.9]}
10. Nc3 {[%clk 0:03:04]} 10... Ne4 {[%clk 0:02:52]} 11. Nxa4 {[%clk 0:02:59.8]}
11... Qa5 {[%clk 0:02:48.8]} 12. b3 {[%clk 0:02:48]} 12... Nc6 {[%clk
0:02:48.7]} 13. Bb2 {[%clk 0:02:40.3]} 13... Bg4 {[%clk 0:02:47.2]} 14. Ne5
{[%clk 0:02:28.5]} 14... Bf5 {[%clk 0:02:34.3]} 15. Rc1 {[%clk 0:02:22.9]} 15...
Rfc8 {[%clk 0:02:32.8]} 16. a3 {[%clk 0:02:05.6]} 16... Nxe5 {[%clk 0:02:20]}
17. dxe5 {[%clk 0:02:06.5]} 17... Qd2 {[%clk 0:02:18.5]} 18. Bxe4 {[%clk
0:01:10.6]} 18... Qxd1 {[%clk 0:02:16.5]} 19. Rfxd1 {[%clk 0:01:10.9]} 19...
Bxe4 {[%clk 0:02:17]} 20. Nc5 {[%clk 0:01:03.9]} 20... Bf5 {[%clk 0:02:08.3]}
21. Nxb7 {[%clk 0:00:54.7]} 21... Bc2 {[%clk 0:02:05.7]} 22. Rxd5 {[%clk
0:00:48.2]} 22... Bxb3 {[%clk 0:02:05.4]} 23. Rxc8+ {[%clk 0:00:36.8]} 23...
Rxc8 {[%clk 0:02:05.3]} 24. Rb5 {[%clk 0:00:31.2]} 24... Bd1 {[%clk 0:02:00.5]}
25. Rc5 {[%clk 0:00:25.2]} 25... Rb8 {[%clk 0:01:57.7]} 26. Rc7 {[%clk 0:00:22]}
26... Bxe2 {[%clk 0:01:56.1]} 27. Bd4 {[%clk 0:00:20.1]} 27... Bf3 {[%clk
0:01:54.1]} 28. Rxe7 {[%clk 0:00:15.2]} 28... Bf8 {[%clk 0:01:47.6]} 29. Rc7
{[%clk 0:00:12.5]} 29... Rxb7 {[%clk 0:01:47.7]} 30. Rxb7 {[%clk 0:00:12]} 30...
Bxb7 {[%clk 0:01:47.8]} 31. a4 {[%clk 0:00:12.4]} 31... Bb4 {[%clk 0:01:46.5]}
32. Bb6 {[%clk 0:00:10.9]} 32... Kf8 {[%clk 0:01:45.8]} 33. f4 {[%clk
0:00:10.3]} 33... Ke7 {[%clk 0:01:44.4]} 34. Kf2 {[%clk 0:00:10]} 34... Kd7
{[%clk 0:01:44.8]} 35. Ke3 {[%clk 0:00:08.8]} 35... Kc6 {[%clk 0:01:45]} 36. Bd8
{[%clk 0:00:07.4]} 36... Bc5+ {[%clk 0:01:43]} 37. Kd3 {[%clk 0:00:04.9]} 37...
Ba6+ {[%clk 0:01:42.8]} 38. Ke4 {[%clk 0:00:04.7]} 38... Kd7 {[%clk 0:01:37.9]}
39. Bf6 {[%clk 0:00:02.1]} 39... Bb7+ {[%clk 0:01:37.9]} 40. Kd3 {[%clk
0:00:01]} 40... Bd5 {[%clk 0:01:38]} 0-1

[Event "*** Titled Tuesday Blitz"]
[Site "Chess.com"]
[Date "2020.05.26"]
[Round "7"]
[White "AlexOstrovskiy"]
[Black "Caterpiller35"]
[Result "1-0"]
[WhiteElo "2626"]
[BlackElo "2296"]
[TimeControl "180+1"]
[EndTime "11:20:00 PDT"]
[Termination "AlexOstrovskiy won by resignation"]

1. d4 {[%clk 0:03:00.9]} 1... Nf6 {[%clk 0:03:00.1]} 2. Bf4 {[%clk 0:03:00.2]}
2... d5 {[%clk 0:02:59.9]} 3. e3 {[%clk 0:02:58.5]} 3... c5 {[%clk 0:03:00.3]}
4. c3 {[%clk 0:02:58.1]} 4... Nc6 {[%clk 0:02:59.2]} 5. Nd2 {[%clk 0:02:58.1]}
5... e6 {[%clk 0:02:59.6]} 6. Ngf3 {[%clk 0:02:57.5]} 6... cxd4 {[%clk
0:02:59.3]} 7. exd4 {[%clk 0:02:56.7]} 7... Nh5 {[%clk 0:02:59.3]} 8. Be3 {[%clk
0:02:50.7]} 8... Bd6 {[%clk 0:02:58.7]} 9. Ne5 {[%clk 0:02:47.6]} 9... g6 {[%clk
0:02:44.9]} 10. Nd3 {[%clk 0:02:39.7]} 10... O-O {[%clk 0:02:39.7]} 11. Be2
{[%clk 0:02:39.3]} 11... Ng7 {[%clk 0:02:37.7]} 12. f4 {[%clk 0:02:39.3]} 12...
f6 {[%clk 0:02:24.5]} 13. O-O {[%clk 0:02:38.1]} 13... Qc7 {[%clk 0:02:20.4]}
14. g3 {[%clk 0:02:32]} 14... Bd7 {[%clk 0:02:19.6]} 15. Nf3 {[%clk 0:02:25.8]}
15... a6 {[%clk 0:02:19.2]} 16. a4 {[%clk 0:02:11.6]} 16... Rae8 {[%clk
0:02:18.4]} 17. Bf2 {[%clk 0:02:06]} 17... e5 {[%clk 0:02:13.6]} 18. fxe5 {[%clk
0:02:04.4]} 18... fxe5 {[%clk 0:02:13]} 19. dxe5 {[%clk 0:02:04.1]} 19... Nxe5
{[%clk 0:02:11.6]} 20. Ndxe5 {[%clk 0:02:01]} 20... Bxe5 {[%clk 0:02:11.6]} 21.
Qxd5+ {[%clk 0:01:42.6]} 21... Kh8 {[%clk 0:02:10.5]} 22. Nxe5 {[%clk
0:01:40.7]} 22... Rxe5 {[%clk 0:02:11.4]} 23. Bd4 {[%clk 0:01:20.7]} 23... Ref5
{[%clk 0:01:59.8]} 24. Rxf5 {[%clk 0:01:09.1]} 24... Rxf5 {[%clk 0:01:58]} 25.
Rf1 {[%clk 0:01:01.1]} 25... Bc6 {[%clk 0:01:57.7]} 26. Qe6 {[%clk 0:00:32.3]}
26... Rxf1+ {[%clk 0:01:24.6]} 27. Bxf1 {[%clk 0:00:32.5]} 27... Bxa4 {[%clk
0:01:22.8]} 28. Bc4 {[%clk 0:00:25]} 28... Qd8 {[%clk 0:01:17.3]} 29. Qf7 {[%clk
0:00:20.1]} 1-0

[Event "*** Titled Tuesday Blitz"]
[Site "Chess.com"]
[Date "2020.05.26"]
[Round "7"]
[White "Tlerus"]
[Black "Dmitry_M1"]
[Result "1-0"]
[WhiteElo "2572"]
[BlackElo "2392"]
[TimeControl "180+1"]
[EndTime "11:20:07 PDT"]
[Termination "Tlerus won on time"]

1. e4 {[%clk 0:03:00.9]} 1... c6 {[%clk 0:02:59.8]} 2. Nf3 {[%clk 0:03:00.2]}
2... d5 {[%clk 0:03:00]} 3. Nc3 {[%clk 0:02:59.7]} 3... Bg4 {[%clk 0:02:59.7]}
4. h3 {[%clk 0:02:59.1]} 4... Bxf3 {[%clk 0:02:59.9]} 5. Qxf3 {[%clk 0:03:00]}
5... e6 {[%clk 0:03:00.3]} 6. d4 {[%clk 0:02:55.8]} 6... Nf6 {[%clk 0:02:49]} 7.
Bd3 {[%clk 0:02:55.3]} 7... dxe4 {[%clk 0:02:33.6]} 8. Nxe4 {[%clk 0:02:55]}
8... Nxe4 {[%clk 0:02:31.4]} 9. Qxe4 {[%clk 0:02:53.8]} 9... Nd7 {[%clk
0:02:31.2]} 10. O-O {[%clk 0:02:53.4]} 10... Nf6 {[%clk 0:02:31.5]} 11. Qh4
{[%clk 0:02:45.1]} 11... Be7 {[%clk 0:02:27.5]} 12. c3 {[%clk 0:02:43.1]} 12...
a6 {[%clk 0:01:25]} 13. f4 {[%clk 0:02:31.4]} 13... c5 {[%clk 0:00:58.9]} 14. f5
{[%clk 0:02:29.5]} 14... exf5 {[%clk 0:00:54.7]} 15. Rxf5 {[%clk 0:02:17.3]}
15... cxd4 {[%clk 0:00:52.5]} 16. cxd4 {[%clk 0:02:14.5]} 16... g6 {[%clk
0:00:29.7]} 17. Re5 {[%clk 0:02:10.7]} 17... O-O {[%clk 0:00:28.7]} 18. Rxe7
{[%clk 0:02:06.3]} 18... Qxe7 {[%clk 0:00:28.9]} 19. Bg5 {[%clk 0:02:06.8]}
19... Rad8 {[%clk 0:00:22.7]} 20. Bxf6 {[%clk 0:01:59.2]} 20... Qe3+ {[%clk
0:00:16.8]} 21. Kh1 {[%clk 0:01:56.5]} 21... Rc8 {[%clk 0:00:11.1]} 22. Re1
{[%clk 0:01:41.7]} 22... Rc1 {[%clk 0:00:07.8]} 23. Rxc1 {[%clk 0:01:41.2]}
23... Qxc1+ {[%clk 0:00:08.7]} 24. Kh2 {[%clk 0:01:41.8]} 24... Qe3 {[%clk
0:00:07.2]} 25. Bc4 {[%clk 0:01:39.1]} 25... Rc8 {[%clk 0:00:05.6]} 26. b3
{[%clk 0:01:30.4]} 26... b5 {[%clk 0:00:05.6]} 27. Qg4 {[%clk 0:01:24.7]} 27...
Re8 {[%clk 0:00:04.4]} 28. Bd5 {[%clk 0:01:22.6]} 28... Qd3 {[%clk 0:00:02]} 29.
Qd7 {[%clk 0:01:20.5]} 29... Rf8 {[%clk 0:00:02.3]} 30. Be5 {[%clk 0:01:16]}
30... Qe3 {[%clk 0:00:01.9]} 31. Qe7 {[%clk 0:01:14.3]} 1-0

[Event "*** Titled Tuesday Blitz"]
[Site "Chess.com"]
[Date "2020.05.26"]
[Round "7"]
[White "Mostii"]
[Black "PetrolulSah"]
[Result "1-0"]
[WhiteElo "2354"]
[BlackElo "2202"]
[TimeControl "180+1"]
[EndTime "11:20:08 PDT"]
[Termination "Mostii won by resignation"]

1. d4 {[%clk 0:02:29.7]} 1... Nf6 {[%clk 0:02:57.2]} 2. Nf3 {[%clk 0:02:30.6]}
2... g6 {[%clk 0:02:52.8]} 3. g3 {[%clk 0:02:31.5]} 3... Bg7 {[%clk 0:02:52.8]}
4. Bg2 {[%clk 0:02:32.4]} 4... O-O {[%clk 0:02:53.2]} 5. O-O {[%clk 0:02:32.9]}
5... d5 {[%clk 0:02:53.7]} 6. b3 {[%clk 0:02:32.4]} 6... c5 {[%clk 0:02:52.8]}
7. Bb2 {[%clk 0:02:32.7]} 7... Ne4 {[%clk 0:02:52.9]} 8. Nbd2 {[%clk 0:02:32.7]}
8... Nc6 {[%clk 0:02:51]} 9. e3 {[%clk 0:02:32.7]} 9... Bg4 {[%clk 0:02:49.8]}
10. h3 {[%clk 0:02:30.6]} 10... Nxd2 {[%clk 0:02:45]} 11. Qxd2 {[%clk
0:02:29.3]} 11... Bxf3 {[%clk 0:02:44.9]} 12. Bxf3 {[%clk 0:02:30.2]} 12... Rc8
{[%clk 0:02:43]} 13. c3 {[%clk 0:02:29.9]} 13... cxd4 {[%clk 0:02:41]} 14. cxd4
{[%clk 0:02:29.4]} 14... a5 {[%clk 0:02:36.2]} 15. Kg2 {[%clk 0:02:28.6]} 15...
Nb4 {[%clk 0:02:30.4]} 16. Rfc1 {[%clk 0:02:26.7]} 16... Qd7 {[%clk 0:02:29.1]}
17. a3 {[%clk 0:02:23.8]} 17... Nc6 {[%clk 0:02:29]} 18. Rc5 {[%clk 0:02:10.7]}
18... b6 {[%clk 0:02:27.3]} 19. Rxd5 {[%clk 0:02:09.8]} 19... Qe6 {[%clk
0:02:24]} 20. Rb5 {[%clk 0:02:08.3]} 20... Na7 {[%clk 0:02:06.6]} 21. Rd5 {[%clk
0:01:41.3]} 21... Rc7 {[%clk 0:01:53]} 22. Rc1 {[%clk 0:01:38.7]} 22... Rd7
{[%clk 0:01:47.4]} 23. Rxd7 {[%clk 0:01:34.9]} 23... Qxd7 {[%clk 0:01:48.3]} 24.
a4 {[%clk 0:01:26.6]} 24... Rc8 {[%clk 0:01:44.6]} 25. Rxc8+ {[%clk 0:01:25.6]}
25... Qxc8 {[%clk 0:01:45.5]} 26. Qc3 {[%clk 0:01:25.3]} 26... Qd7 {[%clk
0:01:42.4]} 27. h4 {[%clk 0:01:21.8]} 27... e6 {[%clk 0:01:42.5]} 28. Qc4 {[%clk
0:01:15.7]} 28... h5 {[%clk 0:01:40.8]} 29. Ba3 {[%clk 0:01:11.7]} 29... Bf8
{[%clk 0:01:35.3]} 30. Bxf8 {[%clk 0:01:06.1]} 30... Kxf8 {[%clk 0:01:36.2]} 31.
d5 {[%clk 0:01:06.5]} 31... e5 {[%clk 0:01:31.9]} 32. e4 {[%clk 0:00:58.5]}
32... Nc8 {[%clk 0:01:27.4]} 33. Qc3 {[%clk 0:00:58.5]} 33... Nd6 {[%clk
0:01:26.7]} 34. Qxe5 {[%clk 0:00:57.8]} 34... Kg8 {[%clk 0:01:16.7]} 35. Qf6
{[%clk 0:00:50.1]} 35... Qc7 {[%clk 0:01:13.1]} 36. e5 {[%clk 0:00:48.4]} 36...
Nf5 {[%clk 0:01:12.7]} 37. d6 {[%clk 0:00:44.7]} 37... Qc2 {[%clk 0:01:07.9]}
38. d7 {[%clk 0:00:32]} 38... Ne3+ {[%clk 0:01:06.9]} 39. Kh3 {[%clk 0:00:32.1]}
1-0